Cogmind - Beta 10.2 @@@ ROGUE MODE // 2022.02.02 @ 22:58:04 Player: Conner Result: Destroyed by Y-45 Defender with Beam Rifle Performance ------------- Evolutions (1) 500 Regions Visited (3) 600 Robots Destroyed (7) 35 Value Destroyed (202) 202 Prototype IDs (0) 0 Alien Tech Used (0) 0 Bonus (0) 0 TOTAL SCORE: 1337 Bonus ------- None Cogmind --------- Core Integrity 0/400 Matter 17/300 Energy 99/100 System Corruption 0% Temperature Cool (9) Movement Rolling (100) Location -9/Materials Parts ------- > --- POWER (1) -------- (None) > --- PROPULSION (2) --- Compact Wheel > --- UTILITY (4) ------ Small Storage Unit Weapon Shielding > --- WEAPON (2) ------- (None) > --- INVENTORY (6) ---- Ion Engine Light Ion Engine Large Storage Unit Power Shielding Weapon Shielding Light EM Pulse Cannon Peak State ------------ > --- POWER ------------ Light Nuclear Core > --- PROPULSION ------- Compact Wheel Compact Wheel > --- UTILITY ---------- Small Storage Unit Weapon Shielding > --- WEAPON ----------- Light Cannon Rocket Launcher > --- INVENTORY -------- Ion Engine Light Ion Engine Heat Sink Power Shielding Weapon Shielding Light Cannon [Rating: 10] Favorites ----------- Power Ion Engine Engine Ion Engine Power Core Light Nuclear Core Propulsion Compact Wheel Wheel Compact Wheel Utility Small Storage Unit Storage Small Storage Unit Protection Weapon Shielding Weapon Light Cannon Energy Gun EM Pulse Gun Ballistic Cannon Light Cannon Launcher Rocket Launcher Build | -11 -10 -10 -9 ------- Run | Scr Mat Min Mat Slots Evolved 2 | . . . 2 Power . | . . . . Propulsion . | . . . . Utility 2 | . . . 2 Weapon . | . . . . Parts Attached 13 | 6 3 4 . Power 4 | 2 . 2 . Engine 3 | 2 . 1 . Core 1 | . . 1 . Reactor . | . . . . Propulsion 3 | 2 . 1 . Treads . | . . . . Leg . | . . . . Wheel 3 | 2 . 1 . Hover . | . . . . Flight . | . . . . Utility 2 | 1 1 . . Device . | . . . . Storage 1 | 1 . . . Processor . | . . . . Hackware . | . . . . Protection 1 | . 1 . . Artifact . | . . . . Weapon 4 | 1 2 1 . Energy Gun 1 | 1 . . . Energy Cannon . | . . . . Ballistic Gun . | . . . . Ballistic Cannon 2 | . 2 . . Launcher 1 | . . 1 . Special Weapon . | . . . . Impact Weapon . | . . . . Slashing Weapon . | . . . . Piercing Weapon . | . . . . Special Melee Weapon . | . . . . Unidentified Prototypes . | . . . . Parts Lost 3 | . . . 3 Power 1 | . . . 1 Propulsion 1 | . . . 1 Utility . | . . . . Weapon 1 | . . . 1 Highest Loss Streak 2 | . . . 2 Average Slot Usage (%) 91 | . 96 100 56 Engine 10 | . 14 10 . Core 2 | . . 3 8 Wheel 26 | . 28 28 19 Storage 13 | . 14 14 11 Protection 12 | . 12 14 11 Energy Gun 1 | . 4 . . Ballistic Cannon 14 | . 21 14 . Launcher 7 | . . 13 5 Naked Turns . | . . . . Heaviest Build 17 | 11 16 17 17 Greatest Support 32 | 32 32 32 32 Greatest Overweight (x) . | . . . . Average Overweight (x) . | . . . . Largest Inventory Capacity 6 | 6 6 6 6 Average Capacity 5 | 5 6 6 6 Most Carried 6 | 3 6 6 6 Average Carried 5 | 1 5 5 5 Final Capacity 6 | 6 6 6 6 Final Carried 6 | 3 6 6 6 Class Distribution -------------------- 100% | Mutant Dominant Class ---------------- Mutant | -10/Materials Mutant | -10/Mines Mutant | -9/Materials Resources | -11 -10 -10 -9 ----------- Run | Scr Mat Min Mat Matter Collected 409 | 260 . 149 . Remotely . | . . . . Salvage Created 115 | . . 115 . Parts 8 | . . 8 . Haulers Intercepted . | . . . . Recyclers Shooed . | . . . . Parts Field Recycled . | . . . . Retrieved Matter . | . . . . Parts Self-Destructed . | . . . . Prevented . | . . . . Kills | -11 -10 -10 -9 ------- Run | Scr Mat Min Mat Combat Hostiles Destroyed 7 | . . 7 . Cannons 5 | . . 5 . AOE 2 | . . 2 . Classes Destroyed 2 | . . 2 . Swarmer 3 | . . 3 . Grunt 4 | . . 4 . Best Kill Streak 2 | . . 2 . Combat Bots Only 2 | . . 2 . Max Kills in Single Turn 1 | . . 1 . Gunslinging . | . . . . Exploded 1 | . . 1 . Melee . | . . . . Uniques/NPCs Destroyed . | . . . . Combat | -11 -10 -10 -9 -------- Run | Scr Mat Min Mat Damage Taken 904 | . . 384 520 Core 496 | . . 91 405 Absorbed by Shields . | . . . . Core Remaining (%) 81 | 100 . 63 . Volleys Fired 73 | . 22 51 . Largest 2 | . 2 2 . Hottest 75 | . 75 68 . Shots Fired 97 | . 44 53 . Gun 5 | . 5 . . Cannon 90 | . 39 51 . Launcher 2 | . . 2 . Special . | . . . . Kinetic 90 | . 39 51 . Thermal . | . . . . Explosive 2 | . . 2 . Electromagnetic 5 | . 5 . . Robot Hit Streak 6 | . . 6 . Robot Miss Streak 9 | . 8 9 . Penetration Max . | . . . . Secondary Targets . | . . . . Shots Hit Robots 27 | . . 27 . Core Hits 9 | . . 9 . Critical Hits . | . . . . Critical Kills . | . . . . Critical Parts Destroyed . | . . . . Melee Attacks . | . . . . Impact . | . . . . Slashing . | . . . . Piercing . | . . . . Sneak Attacks . | . . . . Combat Hostiles . | . . . . Follow-up Attacks . | . . . . Damage Inflicted 640 | . 16 624 . Guns . | . . . . Cannons 503 | . 16 487 . Explosions 136 | . . 136 . Melee . | . . . . Ramming 1 | . . 1 . Kinetic 503 | . 16 487 . Thermal . | . . . . Explosive 136 | . . 136 . Electromagnetic . | . . . . Impact . | . . . . Slashing . | . . . . Piercing . | . . . . Highest Corruption . | . . . . Average Corruption . | . . . . Corruption Purged . | . . . . Overload Shots . | . . . . Overflow Damage 11 | . . 11 . Projectiles 11 | . . 11 . Explosions . | . . . . Melee . | . . . . Knockbacks 11 | . 1 10 . Impact . | . . . . Kinetic 11 | . 1 10 . Secondary . | . . . . Self-Inflicted Damage 41 | . . 41 . Shots 1 | . . 1 . Rammed 1 | . . 1 . Targets Rammed 1 | . . 1 . Kicked . | . . . . Crushed . | . . . . Highest Temperature 81 | . 81 26 . Average Temperature 21 | . 29 10 . Received Heat Transfer 321 | . . 159 162 Siege Activations . | . . . . Robots Corrupted . | . . . . Combat Hostiles . | . . . . Parts Fried . | . . . . Impact Corruptions . | . . . . Robots Melted . | . . . . Combat Hostiles . | . . . . Parts Melted . | . . . . Heat Transferred . | . . . . Parts Sabotaged . | . . . . Parts Stolen . | . . . . Parts Stripped . | . . . . Power Chain Reactions . | . . . . Missiles Intercepted . | . . . . Alert | -11 -10 -10 -9 ------- Run | Scr Mat Min Mat Peak Influence 168 | . 34 168 46 Initial 31 | . . 5 31 Average 40 | . 3 72 34 Maximum Alert Level . | . . . . Low Security (%) 100 | 100 100 100 100 Level 1 . | . . . . Level 2 . | . . . . Level 3 . | . . . . Level 4 . | . . . . Level 5 . | . . . . High Security . | . . . . Max Security . | . . . . Squads Dispatched 3 | . 2 . 1 Investigation 1 | . 1 . . Extermination . | . . . . Reinforcement 2 | . 1 . 1 Assault . | . . . . Garrison . | . . . . Intercept . | . . . . Construction Impeded . | . . . . Haulers Reinforced . | . . . . Stealth | -11 -10 -10 -9 --------- Run | Scr Mat Min Mat Distress Signals . | . . . . Communications Jammed . | . . . . Distress Signals . | . . . . Times Spotted 16 | . 4 9 3 Peak Tracking Total 3 | . 2 3 3 Tactical Retreats 3 | . . 3 . Traps | -11 -10 -10 -9 ------- Run | Scr Mat Min Mat Traps Triggered . | . . . . Indirectly . | . . . . Trap Hack Attempts . | . . . . Triggered . | . . . . Disarmed . | . . . . Reprogrammed . | . . . . Reused . | . . . . Traps Extracted . | . . . . Installed . | . . . . Triggered . | . . . . Machines | -11 -10 -10 -9 ---------- Run | Scr Mat Min Mat Machines Disabled 1 | . . 1 . Max in Single Turn 1 | . . 1 . Machines Sabotaged . | . . . . Garrisons Compromised . | . . . . Overloaded Fab Kills . | . . . . Fab Network Shutdowns . | . . . . Hacking | -11 -10 -10 -9 --------- Run | Scr Mat Min Mat Machines Accessed 5 | . 1 1 3 Terminals 4 | . 1 1 2 Fabricators . | . . . . Repair Stations . | . . . . Recycling Units 1 | . . . 1 Scanalyzers . | . . . . Garrison Access . | . . . . Total Hacks 23 | . 3 7 13 Successful 14 | . 2 4 8 Failed 9 | . 1 3 5 Catastrophic 1 | . . . 1 Database Lockouts . | . . . . Manual 20 | . 4 7 9 Terminals 18 | . 3 7 8 Fabricators . | . . . . Repair Stations . | . . . . Recycling Units 5 | . . . 5 Scanalyzers . | . . . . Garrison Access . | . . . . Terminal Hacks 8 | . 1 3 4 Branch Access Points 1 | . . 1 . Emergency Access Points 1 | . . 1 . Alert Level 1 | . . . 1 Locate Traps 1 | . 1 . . Hauler Manifests 1 | . . . 1 Registered Components 1 | . . . 1 Zone Layout 2 | . . 1 1 Fabricator Hacks . | . . . . Repair Station Hacks . | . . . . Recycling Unit Hacks 2 | . . . 2 Report Inventory 1 | . . . 1 Retrieve Components 1 | . . . 1 Scanalyzer . | . . . . Garrison Access Hacks . | . . . . Unauthorized Hacks 4 | . 1 1 2 Terminals 2 | . 1 1 . Assimilate 1 | . 1 . . Operators 1 | . . 1 . Fabricators . | . . . . Repair Stations . | . . . . Recycling Units 2 | . . . 2 Monitor 1 | . . . 1 Mask 1 | . . . 1 Scanalyzers . | . . . . Garrison Access . | . . . . Data Cores Recovered . | . . . . Used . | . . . . Hacking Detections 6 | . 2 1 3 Full Trace Events 1 | . 1 . . Feedback Events . | . . . . Feedback Blocked . | . . . . Robot Schematics Acquired . | . . . . Robots Built . | . . . . Matter . | . . . . Time . | . . . . Total Robot Build Rating . | . . . . Part Schematics Acquired . | . . . . Parts Built . | . . . . Matter . | . . . . Time . | . . . . Total Part Build Rating . | . . . . Parts Repaired . | . . . . Time . | . . . . Parts Recycled . | . . . . Recycled Matter . | . . . . Retrieved Matter . | . . . . Retrieved Components 1 | . . . 1 Parts Scanalyzed . | . . . . Part Schematics Acquired . | . . . . Parts Damaged . | . . . . Bothacking | -11 -10 -10 -9 ------------ Run | Scr Mat Min Mat Used RIF Installer . | . . . . Robots Hacked . | . . . . Non-combat . | . . . . Combat . | . . . . Robot Hacks Applied . | . . . . Relay Couplers Released . | . . . . Robots Rewired . | . . . . Allies Hacked . | . . . . Hacks Repelled . | . . . . Allies | -11 -10 -10 -9 -------- Run | Scr Mat Min Mat Total Allies . | . . . . Largest Group . | . . . . Highest-Rated Group . | . . . . Highest-Rated Ally . | . . . . Total Orders . | . . . . Ally Attacks . | . . . . Total Damage . | . . . . Kills . | . . . . Allies Corrupted . | . . . . Allies Melted . | . . . . Intel | -11 -10 -10 -9 ------- Run | Scr Mat Min Mat Robot Analysis Total . | . . . . Derelict Logs Recovered 1 | . . 1 . Drone Launches . | . . . . Drone Recoveries . | . . . . Exploration | -11 -10 -10 -9 ------------- Run | Scr Mat Min Mat Turns Passed 1283 | 47 439 600 197 Spaces Moved 1041 | 39 334 476 192 Core 5 | 5 . . . Treads . | . . . . Legs . | . . . . Wheels 1036 | 34 334 476 192 Hover . | . . . . Flight . | . . . . Fastest Speed 50 | 50 100 100 100 Average Speed 99 | 93 100 100 100 Slowest Speed 100 | 100 100 100 100 Overloaded Moves . | . . . . Propulsion Burnouts . | . . . . Robots Hopped . | . . . . Cave-ins Triggered . | . . . . Exploration Rate (%) 33 | 3 28 89 14 Regions Visited 3 Branch Regions 1 Pre-discovered Areas . | . . . . Known Exits Taken . | . . . . Unknown Exits Taken 3 | 1 1 1 . Scrap Searched 1 | . . 1 . Spaces Dug . | . . . . Terrain Destroyed 24 | . . 24 . Melee . | . . . . Projectile 1 | . . 1 . AOE 23 | . . 23 . Terrain Rammed . | . . . . Walls Destroyed . | . . . . Machines Disabled . | . . . . Actions | -11 -10 -10 -9 --------- Run | Scr Mat Min Mat Total 1187 | 46 394 548 199 Wait 40 | . 30 10 . Move 1038 | 38 333 475 192 Hop . | . . . . Pick Up 12 | 2 5 2 3 Fast Attach 7 | 5 1 1 . Attach 1 | . 1 . . Detach . | . . . . Swap 5 | 1 1 3 . Drop 10 | . 1 5 4 Fire 73 | . 22 51 . Melee . | . . . . Ram 1 | . . 1 . Kick . | . . . . Crush . | . . . . Escape Stasis . | . . . . Rewire . | . . . . Trap . | . . . . Miscellaneous . | . . . . Route ------- -11/Scrapyard -10/Materials -10/Mines (discovered 2 exits: *Mat x2) -9/Materials History --------- Turn | Location | Event 16 | -11/Scrapyard | Discovered new exit (range 16) 48 | -11/Scrapyard | Entered Materials 307 | -10/Materials | Build established: Mutant 461 | -10/Materials | Discovered new exit (range 15) 487 | -10/Materials | Entered Mines 494 | -10/Mines | Received a Rocket Launcher from a helpful Derelict 579 | -10/Mines | Discovered new exit (range 9) 706 | -10/Mines | Discovered new exit (range 10) 708 | -10/Mines | Learned Materials terminal intel 813 | -10/Mines | Found a hidden stash of uninstalled traps 1087 | -10/Mines | Entered Materials 1087 | -9/Materials | Evolved 2 slots: Utility x2 1088 | -9/Materials | Loaded intel: 12 terminal locations 1247 | -9/Materials | Core integrity fell below 50% 1279 | -9/Materials | Core integrity fell below 20% 1284 | -9/Materials | Destroyed by Y-45 Defender with Beam Rifle Last Messages --------------- 3x Imp. Medium Laser A-02 Transporter 4x Imp. EM Shotgun (1 escort) A-02 Transporter 6x Imp. Flight Unit >>Inventory(Components) Retrieving component inventory records... Found 1 registered component stockpile: P80ENK77Z6: VTOL Module Downloaded coordinate data. 01205_ >> MONITOR: Recycling Unit M001 accepting Heat Sink(80%). 01208_ >> MONITOR: Recycling Unit M001 accepting Lgt. Treads(90%). 01211_ >> MONITOR: Recycling Unit M001 accepting Lgt. Treads(77%). 01214_ >> MONITOR: Recycling Unit M001 accepting Beam Rifle(84%). 01231_ Connecting with Scanalyzer... 01243_ Dropped Imp. Light Cannon. 01244_ Acquired Lrg. Storage Unit. 01245_ Lgt. Nuclear Core destroyed. 01249_ Com. Wheel destroyed. Map ----- +----------------------------------------------------+ | | | | | | | | | | | | | | | | | | | | | | | | | | | ######????????????????????????????????? | | #????????????????????????????????? | | "" #????????????????????????????????? | | "" #????????????????????????????????? | | "" #########????????????????????????? | | "" ## ########?????????????????? | | ]## ! # #?????????????????? | | #+##### # "S #????##########???? | | + "T" # """ #????# #???? | | # """ # "" #?#### #???? | | #+## + # #?# # #???? | | # ######## #?# #Y #???? | | " # ### ##/####### @Y #???? | | T + w # #???? | | " # # #???? | | # #### #r ###### #???? | | # #??######! !#????# #???? | | # #???????#! ] !#????##########???? | | #### ####????##!! !##?????????????????? | | ???# ## ############??????????????????? | | ???# # #????????????????????????? | | ???# # #????????????????????????? | | ???# # #????????????????????????? | | #### # #????????????????????????? | | # #????????????????????????? | | + #????????????????????????? | | # """ #????????????????????????? | | ## # """ #????????????????????????? | | # # """ #????????????????????????? | | # #????????????????????????????????? | | # #????????????????????????????????? | | # #????????????????????????????????? | | # #????????????????????????????????? | | # #????????????????????????????????? | | # #????????????????????????????????? | | # #????????????????????????????????? | | # #????????????????????????????????? | +----------------------------------------------------+ Best States ------------- Heat Dissipation 28 Energy Generation 14 Energy Capacity 250 Matter Stores 300 Matter Capacity 300 Sight Range 16 Terrain Scan Density 10 Weapon Shielding 33 Evasion (%) 40 Item Schematics ----------------- None Robot Schematics ------------------ None Fabricated ------------ Nothing Alien Tech Used ----------------- None Achievements -------------- None Challenges ------------ None Game ------ Seed StructuralReclamationRailgun Manual? 0 Play Time 00:17:58 Cumulative 29.0 hours Start 2022.02.02 @ 22:42:43 End 2022.02.02 @ 22:58:04 Sessions 1 Manual Loads 0 Difficulty Rogue Special Mode None Game No. 44 Rogue 44 Adventurer 0 Explorer 0 Win Type - Total 0 Types 0/0/0/0/0/0/0/0/0 Lore% 45 Gallery% 42 Achievement% 35 Wizard Run 0 Options --------- ASCII 0 Keyboard 0 Movement Numpad Keybinds 0 Fullscreen 1 Font 24/Smallcaps Map View 76x50 Tactical HUD 1 Map Filters NONE Filters NONE Steam 1 RUN: 2e8434c8-2b66-4c94-b941-3e01d54b3de6